[Event "Titled Tuesday Blitz May 31 Late 2022"]
[White "Golubev, Mikhail"]
[Black "Harvey, Marcus R"]
[WhiteFideId "14100983"]
[BlackFideId "400092"]
[WhiteElo "2374"]
[BlackElo "2485"]
[Result "0-1"]
[Round "10"]
[TimeControl "180+1"]
[Date "2022.05.31"]
[WhiteClock "0:00:01"]
[BlackClock "0:00:09"]

1. e4 {[%clk 0:03:00]}  e5 {[%clk 0:02:58]} 2. Nf3 {[%clk 0:03:01]}  Nf6 {[%clk 0:02:56]} 3. Nc3 {[%clk 0:02:58]}  Nc6 {[%clk 0:02:56]} 4. d4 {[%clk 0:02:58]}  exd4 {[%clk 0:02:56]} 5. Nxd4 {[%clk 0:02:59]}  Bb4 {[%clk 0:02:56]} 6. Nxc6 {[%clk 0:03:00]}  bxc6 {[%clk 0:02:51]} 7. Bd3 {[%clk 0:03:00]}  O-O {[%clk 0:02:51]} 8. O-O {[%clk 0:02:58]}  Re8 {[%clk 0:02:50]} 9. Bg5 {[%clk 0:02:53]}  h6 {[%clk 0:02:48]} 10. Bh4 {[%clk 0:02:54]}  d5 {[%clk 0:02:48]} 11. exd5 {[%clk 0:02:47]}  Bxc3 {[%clk 0:02:48]} 12. bxc3 {[%clk 0:02:43]}  cxd5 {[%clk 0:02:40]} 13. Qd2 {[%clk 0:02:36]}  Qd6 {[%clk 0:02:29]} 14. Rfe1 {[%clk 0:02:29]}  Rxe1+ {[%clk 0:02:25]} 15. Rxe1 {[%clk 0:02:28]}  Bb7 {[%clk 0:02:18]} 16. Bg3 {[%clk 0:02:17]}  Qd7 {[%clk 0:01:59]} 17. h3 {[%clk 0:02:04]}  c5 {[%clk 0:01:54]} 18. Be5 {[%clk 0:02:03]}  Ne8 {[%clk 0:01:41]} 19. Qe3 {[%clk 0:01:51]}  Rc8 {[%clk 0:01:21]} 20. Qf3 {[%clk 0:01:09]}  d4 {[%clk 0:01:18]} 21. Qf5 {[%clk 0:01:07]}  Qxf5 {[%clk 0:01:16]} 22. Bxf5 {[%clk 0:01:08]}  Rd8 {[%clk 0:01:17]} 23. cxd4 {[%clk 0:01:05]}  cxd4 {[%clk 0:01:08]} 24. Rd1 {[%clk 0:00:55]}  g6 {[%clk 0:01:08]} 25. Bg4 {[%clk 0:00:47]}  h5 {[%clk 0:01:02]} 26. Be2 {[%clk 0:00:47]}  Rc8 {[%clk 0:00:58]} 27. Bd3 {[%clk 0:00:30]}  Rc5 {[%clk 0:00:50]} 28. Bxd4 {[%clk 0:00:27]}  Ra5 {[%clk 0:00:51]} 29. Bc4 {[%clk 0:00:23]}  Nd6 {[%clk 0:00:46]} 30. Bb3 {[%clk 0:00:16]}  Ra6 {[%clk 0:00:33]} 31. Be5 {[%clk 0:00:15]}  Ne8 {[%clk 0:00:33]} 32. Rd8 {[%clk 0:00:14]}  Kf8 {[%clk 0:00:34]} 33. Bc4 {[%clk 0:00:12]}  Ke7 {[%clk 0:00:32]} 34. Rd3 {[%clk 0:00:10]}  Ra4 {[%clk 0:00:24]} 35. Bb3 {[%clk 0:00:09]}  Ra5 {[%clk 0:00:23]} 36. Re3 {[%clk 0:00:09]}  Ra6 {[%clk 0:00:17]} 37. Bd4+ {[%clk 0:00:08]}  Kf8 {[%clk 0:00:17]} 38. Bc5+ {[%clk 0:00:08]}  Nd6 {[%clk 0:00:16]} 39. Rd3 {[%clk 0:00:07]}  Ke7 {[%clk 0:00:16]} 40. Rxd6 {[%clk 0:00:07]}  Rxd6 {[%clk 0:00:16]} 41. Bxd6+ {[%clk 0:00:07]}  Kxd6 {[%clk 0:00:16]} 42. Bxf7 {[%clk 0:00:08]}  Be4 {[%clk 0:00:16]} 43. c3 {[%clk 0:00:06]}  h4 {[%clk 0:00:15]} 44. f3 {[%clk 0:00:06]}  Bb1 {[%clk 0:00:15]} 45. Kf2 {[%clk 0:00:05]}  Ke5 {[%clk 0:00:15]} 46. Ke3 {[%clk 0:00:05]}  g5 {[%clk 0:00:16]} 47. Bb3 {[%clk 0:00:05]}  a5 {[%clk 0:00:16]} 48. a3 {[%clk 0:00:06]}  Bf5 {[%clk 0:00:14]} 49. Bc4 {[%clk 0:00:05]}  Bd7 {[%clk 0:00:14]} 50. Bd3 {[%clk 0:00:05]}  Bc6 {[%clk 0:00:13]} 51. Be4 {[%clk 0:00:05]}  Bb5 {[%clk 0:00:13]} 52. Bd3 {[%clk 0:00:05]}  Ba4 {[%clk 0:00:14]} 53. Be4 {[%clk 0:00:06]}  Bb5 {[%clk 0:00:13]} 54. Bc2 {[%clk 0:00:05]}  Bf1 {[%clk 0:00:12]} 55. Be4 {[%clk 0:00:05]}  Bxg2 {[%clk 0:00:12]} 56. c4 {[%clk 0:00:04]}  Bxh3 {[%clk 0:00:12]} 57. c5 {[%clk 0:00:04]}  Bc8 {[%clk 0:00:12]} 58. c6 {[%clk 0:00:03]}  h3 {[%clk 0:00:12]} 59. Kf2 {[%clk 0:00:03]}  g4 {[%clk 0:00:12]} 60. Kg3 {[%clk 0:00:01]}  a4 {[%clk 0:00:09]} 0-1


[Site "https://www.chess.com"]

[Event "Titled Tuesday Blitz May 31 Late 2022"]
[White "Grischuk, Alexander"]
[Black "Ivic, Velimir"]
[WhiteFideId "4126025"]
[BlackFideId "950122"]
[WhiteElo "2762"]
[BlackElo "2610"]
[Result "0-1"]
[Round "10"]
[TimeControl "180+1"]
[Date "2022.05.31"]
[WhiteClock "0:00:02"]
[BlackClock "0:00:04"]

1. d4 {[%clk 0:03:00]}  Nf6 {[%clk 0:02:58]} 2. c4 {[%clk 0:03:01]}  g6 {[%clk 0:02:58]} 3. Nc3 {[%clk 0:03:01]}  d5 {[%clk 0:02:58]} 4. cxd5 {[%clk 0:03:02]}  Nxd5 {[%clk 0:02:59]} 5. e4 {[%clk 0:03:03]}  Nxc3 {[%clk 0:03:00]} 6. bxc3 {[%clk 0:03:04]}  Bg7 {[%clk 0:03:00]} 7. Nf3 {[%clk 0:03:04]}  c5 {[%clk 0:03:01]} 8. h3 {[%clk 0:03:05]}  O-O {[%clk 0:02:58]} 9. Be2 {[%clk 0:03:05]}  b6 {[%clk 0:02:53]} 10. Be3 {[%clk 0:03:03]}  Bb7 {[%clk 0:02:48]} 11. Qd3 {[%clk 0:03:03]}  cxd4 {[%clk 0:02:48]} 12. cxd4 {[%clk 0:03:04]}  Ba6 {[%clk 0:02:49]} 13. Qd2 {[%clk 0:03:03]}  Bb7 {[%clk 0:02:49]} 14. e5 {[%clk 0:02:46]}  Bd5 {[%clk 0:02:41]} 15. h4 {[%clk 0:02:46]}  h5 {[%clk 0:02:37]} 16. Rg1 {[%clk 0:02:43]}  Nc6 {[%clk 0:02:31]} 17. g4 {[%clk 0:02:41]}  hxg4 {[%clk 0:02:32]} 18. Rxg4 {[%clk 0:02:41]}  Qd7 {[%clk 0:02:32]} 19. Rg3 {[%clk 0:02:31]}  Rad8 {[%clk 0:02:28]} 20. Rd1 {[%clk 0:02:23]}  Qf5 {[%clk 0:02:23]} 21. Bd3 {[%clk 0:01:22]}  Be4 {[%clk 0:02:14]} 22. Bxe4 {[%clk 0:01:17]}  Qxe4 {[%clk 0:02:15]} 23. Qe2 {[%clk 0:01:05]}  Qf5 {[%clk 0:01:35]} 24. Rg5 {[%clk 0:00:56]}  Qh3 {[%clk 0:01:35]} 25. h5 {[%clk 0:00:56]}  Bh6 {[%clk 0:01:15]} 26. hxg6 {[%clk 0:00:42]}  Bxg5 {[%clk 0:01:07]} 27. gxf7+ {[%clk 0:00:42]}  Rxf7 {[%clk 0:00:53]} 28. Nxg5 {[%clk 0:00:43]}  Qh1+ {[%clk 0:00:53]} 29. Kd2 {[%clk 0:00:43]}  Qh4 {[%clk 0:00:53]} 30. Nxf7 {[%clk 0:00:40]}  Nxd4 {[%clk 0:00:53]} 31. Nxd8 {[%clk 0:00:23]}  Nxe2 {[%clk 0:00:51]} 32. Kxe2 {[%clk 0:00:24]}  Qc4+ {[%clk 0:00:47]} 33. Kf3 {[%clk 0:00:21]}  Qxa2 {[%clk 0:00:44]} 34. Rd7 {[%clk 0:00:19]}  Kf8 {[%clk 0:00:36]} 35. e6 {[%clk 0:00:16]}  Qa5 {[%clk 0:00:27]} 36. Ke4 {[%clk 0:00:12]}  Qa4+ {[%clk 0:00:23]} 37. Kd5 {[%clk 0:00:12]}  Qb5+ {[%clk 0:00:22]} 38. Ke4 {[%clk 0:00:12]}  Qc4+ {[%clk 0:00:22]} 39. Ke5 {[%clk 0:00:11]}  Qb5+ {[%clk 0:00:20]} 40. Rd5 {[%clk 0:00:11]}  Qb2+ {[%clk 0:00:20]} 41. Rd4 {[%clk 0:00:11]}  a5 {[%clk 0:00:19]} 42. Nf7 {[%clk 0:00:09]}  a4 {[%clk 0:00:17]} 43. Kf5 {[%clk 0:00:07]}  Qc2+ {[%clk 0:00:13]} 44. Kg5 {[%clk 0:00:07]}  Kg7 {[%clk 0:00:12]} 45. Ne5 {[%clk 0:00:04]}  a3 {[%clk 0:00:10]} 46. Rd7 {[%clk 0:00:04]}  a2 {[%clk 0:00:05]} 47. Rxe7+ {[%clk 0:00:03]}  Kg8 {[%clk 0:00:05]} 48. Re8+ {[%clk 0:00:03]}  Kg7 {[%clk 0:00:05]} 49. Re7+ {[%clk 0:00:04]}  Kg8 {[%clk 0:00:06]} 50. Ra7 {[%clk 0:00:04]}  Qb2 {[%clk 0:00:04]} 51. Kf6 {[%clk 0:00:03]}  a1=Q {[%clk 0:00:03]} 52. Rxa1 {[%clk 0:00:03]}  Qxa1 {[%clk 0:00:04]} 53. e7 {[%clk 0:00:04]}  Qa4 {[%clk 0:00:04]} 54. Bxb6 {[%clk 0:00:03]}  Qe8 {[%clk 0:00:03]} 55. Ke6 {[%clk 0:00:03]}  Qc8+ {[%clk 0:00:03]} 56. Kd6 {[%clk 0:00:04]}  Qe8 {[%clk 0:00:02]} 57. f4 {[%clk 0:00:04]}  Qb8+ {[%clk 0:00:03]} 58. Kd7 {[%clk 0:00:04]}  Qb7+ {[%clk 0:00:02]} 59. Bc7 {[%clk 0:00:04]}  Qd5+ {[%clk 0:00:03]} 60. Bd6 {[%clk 0:00:04]}  Qb5+ {[%clk 0:00:03]} 61. Nc6 {[%clk 0:00:04]}  Qf5+ {[%clk 0:00:04]} 62. Kd8 {[%clk 0:00:04]}  Qf6 {[%clk 0:00:04]} 63. Be5 {[%clk 0:00:04]}  Qh4 {[%clk 0:00:04]} 64. Kd7 {[%clk 0:00:03]}  Qg4+ {[%clk 0:00:04]} 65. Kd8 {[%clk 0:00:04]}  Qh4 {[%clk 0:00:04]} 66. Bd6 {[%clk 0:00:02]}  Kf7 {[%clk 0:00:04]} 67. Ne5+ {[%clk 0:00:02]}  Ke6 {[%clk 0:00:04]} 68. Kc7 {[%clk 0:00:02]}  Qh5 {[%clk 0:00:03]} 69. Nd7 {[%clk 0:00:02]}  Qe8 {[%clk 0:00:02]} 70. Nc5+ {[%clk 0:00:02]}  Kd5 {[%clk 0:00:03]} 71. Nb7 {[%clk 0:00:02]}  Qc6+ {[%clk 0:00:03]} 72. Kb8 {[%clk 0:00:02]}  Qe8+ {[%clk 0:00:02]} 73. Kc7 {[%clk 0:00:02]}  Ke6 {[%clk 0:00:02]} 74. Nc5+ {[%clk 0:00:01]}  Kd5 {[%clk 0:00:03]} 75. Nd7 {[%clk 0:00:02]}  Ke6 {[%clk 0:00:03]} 76. Bc5 {[%clk 0:00:02]}  Qxd7+ {[%clk 0:00:03]} 77. Kb6 {[%clk 0:00:02]}  Qe8 {[%clk 0:00:04]} 0-1


[Site "https://www.chess.com"]

[Event "Titled Tuesday Blitz May 31 Late 2022"]
[White "Hansen, Eric"]
[Black "Zhigalko, Sergei"]
[WhiteFideId "2606771"]
[BlackFideId "13502956"]
[WhiteElo "2568"]
[BlackElo "2662"]
[Result "1-0"]
[Round "10"]
[TimeControl "180+1"]
[Date "2022.05.31"]
[WhiteClock "0:00:01"]
[BlackClock "0:00:01"]

1. d4 {[%clk 0:03:00]}  Nf6 {[%clk 0:03:00]} 2. c4 {[%clk 0:03:00]}  e6 {[%clk 0:03:00]} 3. Nc3 {[%clk 0:03:00]}  Bb4 {[%clk 0:03:01]} 4. e3 {[%clk 0:03:00]}  O-O {[%clk 0:03:01]} 5. Bd2 {[%clk 0:02:59]}  b6 {[%clk 0:02:58]} 6. Nge2 {[%clk 0:02:57]}  d5 {[%clk 0:02:56]} 7. a3 {[%clk 0:02:57]}  Bd6 {[%clk 0:02:56]} 8. cxd5 {[%clk 0:02:50]}  exd5 {[%clk 0:02:56]} 9. b4 {[%clk 0:02:49]}  Re8 {[%clk 0:02:44]} 10. Ng3 {[%clk 0:02:43]}  Bb7 {[%clk 0:02:11]} 11. Bb5 {[%clk 0:02:34]}  Nbd7 {[%clk 0:02:09]} 12. O-O {[%clk 0:02:33]}  g6 {[%clk 0:02:05]} 13. Qb3 {[%clk 0:02:31]}  h5 {[%clk 0:02:01]} 14. h3 {[%clk 0:02:28]}  a6 {[%clk 0:01:56]} 15. Bd3 {[%clk 0:02:26]}  b5 {[%clk 0:01:54]} 16. a4 {[%clk 0:02:21]}  c6 {[%clk 0:01:53]} 17. a5 {[%clk 0:02:19]}  Qc7 {[%clk 0:01:49]} 18. Rac1 {[%clk 0:02:16]}  Rad8 {[%clk 0:01:29]} 19. f4 {[%clk 0:02:08]}  Qb8 {[%clk 0:00:55]} 20. Qb1 {[%clk 0:02:01]}  Kg7 {[%clk 0:00:49]} 21. Kh1 {[%clk 0:01:24]}  Re7 {[%clk 0:00:41]} 22. e4 {[%clk 0:01:09]}  dxe4 {[%clk 0:00:40]} 23. Ncxe4 {[%clk 0:01:09]}  h4 {[%clk 0:00:26]} 24. Ne2 {[%clk 0:00:42]}  Nxe4 {[%clk 0:00:05]} 25. Bxe4 {[%clk 0:00:42]}  Nf6 {[%clk 0:00:06]} 26. Bf3 {[%clk 0:00:42]}  Rde8 {[%clk 0:00:03]} 27. Nc3 {[%clk 0:00:38]}  Bxf4 {[%clk 0:00:02]} 28. Bxf4 {[%clk 0:00:32]}  Qxf4 {[%clk 0:00:03]} 29. Bxc6 {[%clk 0:00:33]}  Qg3 {[%clk 0:00:02]} 30. Bxb7 {[%clk 0:00:15]}  Rxb7 {[%clk 0:00:03]} 31. Rf3 {[%clk 0:00:14]}  Qg5 {[%clk 0:00:03]} 32. Rcf1 {[%clk 0:00:14]}  Nh5 {[%clk 0:00:03]} 33. Ne4 {[%clk 0:00:08]}  Qd5 {[%clk 0:00:02]} 34. Nf6 {[%clk 0:00:04]}  Nxf6 {[%clk 0:00:02]} 35. Rxf6 {[%clk 0:00:04]}  Qxd4 {[%clk 0:00:02]} 36. Qb3 {[%clk 0:00:03]}  Rf8 {[%clk 0:00:01]} 37. Qf3 {[%clk 0:00:03]}  Re7 {[%clk 0:00:01]} 38. Rxa6 {[%clk 0:00:03]}  Qe4 {[%clk 0:00:01]} 39. Qf6+ {[%clk 0:00:03]}  Kg8 {[%clk 0:00:01]} 40. Rb6 {[%clk 0:00:02]}  Re5 {[%clk 0:00:01]} 41. a6 {[%clk 0:00:02]}  Qc4 {[%clk 0:00:01]} 42. a7 {[%clk 0:00:01]} 1-0


[Site "https://www.chess.com"]

[Event "Titled Tuesday Blitz May 31 Late 2022"]
[White "Hosseinzadeh, Nima"]
[Black "Papasimakopoulos, Alexandros"]
[WhiteFideId "12505323"]
[BlackFideId "4244125"]
[WhiteElo "2066"]
[BlackElo "2340"]
[Result "0-1"]
[Round "10"]
[TimeControl "180+1"]
[Date "2022.05.31"]
[WhiteClock "0:00:02"]
[BlackClock "0:00:18"]

1. e4 {[%clk 0:03:00]}  e6 {[%clk 0:02:59]} 2. d4 {[%clk 0:03:00]}  d5 {[%clk 0:03:00]} 3. Nc3 {[%clk 0:03:01]}  Bb4 {[%clk 0:02:59]} 4. e5 {[%clk 0:03:01]}  b6 {[%clk 0:03:00]} 5. Qg4 {[%clk 0:02:48]}  Bf8 {[%clk 0:03:00]} 6. h4 {[%clk 0:02:45]}  h5 {[%clk 0:03:00]} 7. Qf4 {[%clk 0:02:45]}  Ne7 {[%clk 0:02:59]} 8. Nf3 {[%clk 0:02:43]}  Ba6 {[%clk 0:02:59]} 9. Bxa6 {[%clk 0:02:42]}  Nxa6 {[%clk 0:03:00]} 10. Ng5 {[%clk 0:02:43]}  Nf5 {[%clk 0:03:00]} 11. Ne2 {[%clk 0:02:38]}  Nb4 {[%clk 0:02:59]} 12. Qd2 {[%clk 0:02:33]}  c5 {[%clk 0:02:57]} 13. c3 {[%clk 0:02:32]}  Nc6 {[%clk 0:02:57]} 14. Qf4 {[%clk 0:02:27]}  Be7 {[%clk 0:02:50]} 15. O-O {[%clk 0:02:25]}  g6 {[%clk 0:02:47]} 16. Ng3 {[%clk 0:02:21]}  Bxg5 {[%clk 0:02:41]} 17. hxg5 {[%clk 0:02:16]}  Nce7 {[%clk 0:02:18]} 18. Rd1 {[%clk 0:01:57]}  cxd4 {[%clk 0:02:15]} 19. cxd4 {[%clk 0:01:58]}  Qd7 {[%clk 0:02:11]} 20. Nxf5 {[%clk 0:01:51]}  Nxf5 {[%clk 0:02:11]} 21. a4 {[%clk 0:01:52]}  O-O {[%clk 0:02:10]} 22. Bd2 {[%clk 0:01:50]}  Rfc8 {[%clk 0:02:09]} 23. Bc3 {[%clk 0:01:50]}  Rc4 {[%clk 0:02:08]} 24. f3 {[%clk 0:01:45]}  Rxa4 {[%clk 0:02:04]} 25. Rxa4 {[%clk 0:01:46]}  Qxa4 {[%clk 0:02:04]} 26. Rd2 {[%clk 0:01:34]}  Qa1+ {[%clk 0:02:02]} 27. Kh2 {[%clk 0:01:34]}  Qe1 {[%clk 0:02:01]} 28. g4 {[%clk 0:01:23]}  Ne3 {[%clk 0:01:44]} 29. gxh5 {[%clk 0:00:55]}  Nf1+ {[%clk 0:01:37]} 30. Kg2 {[%clk 0:00:56]}  Nxd2 {[%clk 0:01:37]} 31. Bxd2 {[%clk 0:00:56]}  Qe2+ {[%clk 0:01:35]} 32. Kg3 {[%clk 0:00:57]}  gxh5 {[%clk 0:01:33]} 33. g6 {[%clk 0:00:57]}  fxg6 {[%clk 0:01:09]} 34. Qf6 {[%clk 0:00:54]}  h4+ {[%clk 0:00:57]} 35. Kh3 {[%clk 0:00:49]}  Qf1+ {[%clk 0:00:51]} 36. Kxh4 {[%clk 0:00:46]}  Qh1+ {[%clk 0:00:50]} 37. Kg3 {[%clk 0:00:40]}  Qg1+ {[%clk 0:00:50]} 38. Kh3 {[%clk 0:00:40]}  Rf8 {[%clk 0:00:42]} 39. Qxe6+ {[%clk 0:00:28]}  Kh8 {[%clk 0:00:38]} 40. Qg4 {[%clk 0:00:26]}  Qf1+ {[%clk 0:00:31]} 41. Kg3 {[%clk 0:00:23]}  Qg1+ {[%clk 0:00:27]} 42. Kh3 {[%clk 0:00:23]}  Qh1+ {[%clk 0:00:20]} 43. Kg3 {[%clk 0:00:22]}  Kg7 {[%clk 0:00:20]} 44. Bg5 {[%clk 0:00:13]}  Qg1+ {[%clk 0:00:20]} 45. Kh3 {[%clk 0:00:12]}  Rh8+ {[%clk 0:00:20]} 46. Bh4 {[%clk 0:00:12]}  Qxg4+ {[%clk 0:00:18]} 47. Kxg4 {[%clk 0:00:13]}  Kf7 {[%clk 0:00:18]} 48. Bf6 {[%clk 0:00:02]}  Rh2 {[%clk 0:00:18]} 49. f4 {[%clk 0:00:02]}  Rxb2 {[%clk 0:00:18]} 0-1


[Site "https://www.chess.com"]

[Event "Titled Tuesday Blitz May 31 Late 2022"]
[White "Kobalia, Mikhail"]
[Black "Buchenau, Frank"]
[WhiteFideId "4119150"]
[BlackFideId "4604350"]
[WhiteElo "2667"]
[BlackElo "2157"]
[Result "1-0"]
[Round "10"]
[TimeControl "180+1"]
[Date "2022.05.31"]
[WhiteClock "0:01:17"]
[BlackClock "0:00:02"]

1. e4 {[%clk 0:03:00]}  e6 {[%clk 0:03:00]} 2. d3 {[%clk 0:02:58]}  d5 {[%clk 0:03:00]} 3. Nd2 {[%clk 0:02:59]}  Nf6 {[%clk 0:03:00]} 4. Ngf3 {[%clk 0:02:59]}  b6 {[%clk 0:03:01]} 5. e5 {[%clk 0:02:59]}  Ng8 {[%clk 0:03:00]} 6. d4 {[%clk 0:02:59]}  Ne7 {[%clk 0:03:00]} 7. c3 {[%clk 0:02:58]}  c5 {[%clk 0:02:58]} 8. Bd3 {[%clk 0:02:57]}  Qd7 {[%clk 0:02:56]} 9. O-O {[%clk 0:02:56]}  Ba6 {[%clk 0:02:56]} 10. Ne1 {[%clk 0:02:57]}  Bxd3 {[%clk 0:02:52]} 11. Nxd3 {[%clk 0:02:57]}  Nf5 {[%clk 0:02:40]} 12. Nf3 {[%clk 0:02:52]}  Be7 {[%clk 0:02:36]} 13. g4 {[%clk 0:02:50]}  Nh4 {[%clk 0:02:33]} 14. Nxh4 {[%clk 0:02:50]}  Bxh4 {[%clk 0:02:33]} 15. f4 {[%clk 0:02:50]}  h6 {[%clk 0:02:13]} 16. dxc5 {[%clk 0:02:50]}  bxc5 {[%clk 0:02:11]} 17. Nxc5 {[%clk 0:02:49]}  Qb5 {[%clk 0:02:09]} 18. Be3 {[%clk 0:02:47]}  Nc6 {[%clk 0:02:06]} 19. f5 {[%clk 0:02:46]}  Bg5 {[%clk 0:01:58]} 20. Bd4 {[%clk 0:02:38]}  Nxd4 {[%clk 0:01:31]} 21. cxd4 {[%clk 0:02:37]}  O-O {[%clk 0:01:11]} 22. b3 {[%clk 0:02:37]}  exf5 {[%clk 0:00:59]} 23. gxf5 {[%clk 0:02:35]}  Rac8 {[%clk 0:00:58]} 24. Kh1 {[%clk 0:02:32]}  Be3 {[%clk 0:00:52]} 25. Rf3 {[%clk 0:02:28]}  Bxd4 {[%clk 0:00:50]} 26. Qxd4 {[%clk 0:02:25]}  Rxc5 {[%clk 0:00:48]} 27. Rg1 {[%clk 0:02:23]}  Qe2 {[%clk 0:00:41]} 28. Qg4 {[%clk 0:02:17]}  g5 {[%clk 0:00:21]} 29. fxg6 {[%clk 0:02:17]}  f5 {[%clk 0:00:15]} 30. Rxf5 {[%clk 0:02:06]}  Qxg4 {[%clk 0:00:13]} 31. Rxf8+ {[%clk 0:02:06]}  Kxf8 {[%clk 0:00:13]} 32. Rxg4 {[%clk 0:02:06]}  Kg7 {[%clk 0:00:13]} 33. e6 {[%clk 0:01:47]}  Rc1+ {[%clk 0:00:12]} 34. Kg2 {[%clk 0:01:46]}  Re1 {[%clk 0:00:12]} 35. Ra4 {[%clk 0:01:46]}  Rxe6 {[%clk 0:00:11]} 36. Rxa7+ {[%clk 0:01:45]}  Kxg6 {[%clk 0:00:12]} 37. Kf3 {[%clk 0:01:42]}  Kf6 {[%clk 0:00:08]} 38. b4 {[%clk 0:01:41]}  Ke5 {[%clk 0:00:06]} 39. b5 {[%clk 0:01:40]}  Kd4 {[%clk 0:00:06]} 40. a4 {[%clk 0:01:38]}  Re3+ {[%clk 0:00:06]} 41. Kf4 {[%clk 0:01:38]}  Rb3 {[%clk 0:00:06]} 42. Ra6 {[%clk 0:01:36]}  Kc3 {[%clk 0:00:05]} 43. Rc6+ {[%clk 0:01:34]}  Kb4 {[%clk 0:00:04]} 44. b6 {[%clk 0:01:28]}  Kxa4 {[%clk 0:00:04]} 45. Ke5 {[%clk 0:01:28]}  Rb5 {[%clk 0:00:03]} 46. Rxh6 {[%clk 0:01:27]}  Ka5 {[%clk 0:00:02]} 47. h4 {[%clk 0:01:24]}  Ka6 {[%clk 0:00:02]} 48. Kd4 {[%clk 0:01:19]}  Kb7 {[%clk 0:00:02]} 49. h5 {[%clk 0:01:17]} 1-0


[Site "https://www.chess.com"]

[Event "Titled Tuesday Blitz May 31 Late 2022"]
[White "Leiva, Gianmarco"]
[Black "Hirneise, Jens"]
[WhiteFideId "3804399"]
[BlackFideId "24614734"]
[WhiteElo "2323"]
[BlackElo "2359"]
[Result "1-0"]
[Round "10"]
[TimeControl "180+1"]
[Date "2022.06.01"]
[WhiteClock "0:00:05"]
[BlackClock "0:00:02"]

1. Nf3 {[%clk 0:02:55]}  c5 {[%clk 0:02:59]} 2. g3 {[%clk 0:02:55]}  d5 {[%clk 0:02:58]} 3. Bg2 {[%clk 0:02:55]}  Nc6 {[%clk 0:02:58]} 4. O-O {[%clk 0:02:55]}  e5 {[%clk 0:02:56]} 5. d3 {[%clk 0:02:55]}  f6 {[%clk 0:02:53]} 6. c4 {[%clk 0:02:53]}  Nge7 {[%clk 0:02:52]} 7. Nc3 {[%clk 0:02:53]}  Be6 {[%clk 0:02:53]} 8. Qa4 {[%clk 0:01:53]}  Qd7 {[%clk 0:02:44]} 9. Qb5 {[%clk 0:01:37]}  b6 {[%clk 0:02:38]} 10. Re1 {[%clk 0:01:16]}  O-O-O {[%clk 0:02:32]} 11. a3 {[%clk 0:01:02]}  Nd4 {[%clk 0:02:18]} 12. Nxd4 {[%clk 0:01:00]}  cxd4 {[%clk 0:02:16]} 13. Qa6+ {[%clk 0:00:58]}  Kb8 {[%clk 0:02:12]} 14. cxd5 {[%clk 0:00:45]}  Nxd5 {[%clk 0:02:11]} 15. Nb5 {[%clk 0:00:41]}  Qb7 {[%clk 0:01:51]} 16. Qa4 {[%clk 0:00:28]}  a6 {[%clk 0:01:49]} 17. Nxd4 {[%clk 0:00:28]}  exd4 {[%clk 0:01:45]} 18. Qxd4 {[%clk 0:00:29]}  Bc5 {[%clk 0:01:42]} 19. Qa4 {[%clk 0:00:23]}  b5 {[%clk 0:01:40]} 20. Qc2 {[%clk 0:00:14]}  Qb6 {[%clk 0:01:38]} 21. e3 {[%clk 0:00:13]}  Rc8 {[%clk 0:01:38]} 22. Qe2 {[%clk 0:00:14]}  Rhd8 {[%clk 0:01:38]} 23. Bd2 {[%clk 0:00:14]}  Bf8 {[%clk 0:01:32]} 24. d4 {[%clk 0:00:13]}  Ne7 {[%clk 0:01:21]} 25. Qd3 {[%clk 0:00:12]}  g6 {[%clk 0:01:17]} 26. Bc3 {[%clk 0:00:13]}  Bc4 {[%clk 0:01:15]} 27. Qd2 {[%clk 0:00:13]}  f5 {[%clk 0:01:14]} 28. Ba5 {[%clk 0:00:13]}  Qe6 {[%clk 0:01:11]} 29. Bxd8 {[%clk 0:00:14]}  Rxd8 {[%clk 0:01:12]} 30. Rac1 {[%clk 0:00:13]}  Bd5 {[%clk 0:01:09]} 31. e4 {[%clk 0:00:09]}  fxe4 {[%clk 0:01:06]} 32. Bxe4 {[%clk 0:00:09]}  Bxe4 {[%clk 0:01:03]} 33. Qf4+ {[%clk 0:00:09]}  Qd6 {[%clk 0:01:01]} 34. Qxe4 {[%clk 0:00:05]}  Nd5 {[%clk 0:00:57]} 35. Qe6 {[%clk 0:00:03]}  Bg7 {[%clk 0:00:50]} 36. Qf7 {[%clk 0:00:04]}  Bxd4 {[%clk 0:00:47]} 37. Rcd1 {[%clk 0:00:04]}  Rf8 {[%clk 0:00:43]} 38. Qxf8+ {[%clk 0:00:02]}  Qxf8 {[%clk 0:00:44]} 39. Rxd4 {[%clk 0:00:02]}  Nb6 {[%clk 0:00:41]} 40. Red1 {[%clk 0:00:03]}  Qf3 {[%clk 0:00:37]} 41. Rd8+ {[%clk 0:00:03]}  Kc7 {[%clk 0:00:37]} 42. R8d3 {[%clk 0:00:04]}  Qe4 {[%clk 0:00:35]} 43. Re3 {[%clk 0:00:04]}  Qg4 {[%clk 0:00:27]} 44. Rc1+ {[%clk 0:00:05]}  Kb7 {[%clk 0:00:15]} 45. Re7+ {[%clk 0:00:04]}  Kb8 {[%clk 0:00:15]} 46. Rxh7 {[%clk 0:00:04]}  Nc4 {[%clk 0:00:13]} 47. Re1 {[%clk 0:00:04]}  Qc8 {[%clk 0:00:07]} 48. Rhe7 {[%clk 0:00:04]}  Nd6 {[%clk 0:00:07]} 49. R7e6 {[%clk 0:00:04]}  Qc5 {[%clk 0:00:05]} 50. Rxg6 {[%clk 0:00:04]}  Nc4 {[%clk 0:00:04]} 51. Rg7 {[%clk 0:00:03]}  Qc6 {[%clk 0:00:02]} 52. Rg8+ {[%clk 0:00:02]}  Kb7 {[%clk 0:00:02]} 53. Rg7+ {[%clk 0:00:02]}  Kb6 {[%clk 0:00:03]} 54. Rge7 {[%clk 0:00:03]}  Ka5 {[%clk 0:00:03]} 55. R7e2 {[%clk 0:00:03]}  Ka4 {[%clk 0:00:02]} 56. Rc1 {[%clk 0:00:04]}  Qd5 {[%clk 0:00:02]} 57. Rec2 {[%clk 0:00:04]}  Na5 {[%clk 0:00:02]} 58. Rc3 {[%clk 0:00:04]}  Nb3 {[%clk 0:00:02]} 59. Re1 {[%clk 0:00:04]}  Qd2 {[%clk 0:00:03]} 60. Ree3 {[%clk 0:00:04]}  Nd4 {[%clk 0:00:02]} 61. Rcd3 {[%clk 0:00:04]}  Ne2+ {[%clk 0:00:02]} 62. Kg2 {[%clk 0:00:05]}  Qxb2 {[%clk 0:00:02]} 63. Re4+ {[%clk 0:00:04]}  Ka5 {[%clk 0:00:02]} 64. h4 {[%clk 0:00:05]}  Nc3 {[%clk 0:00:03]} 65. Re6 {[%clk 0:00:05]}  Qb3 {[%clk 0:00:02]} 66. Rdd6 {[%clk 0:00:05]}  Qc4 {[%clk 0:00:02]} 67. Rxa6# {[%clk 0:00:05]} 1-0


[Site "https://www.chess.com"]